[Event "Marshall CC Premier 04-2025"]
[Site "New York"]
[Date "2025.04.06"]
[Round "4.7"]
[White "Le, Quan Anh"]
[Black "Cheung, Kyle"]
[Result "1/2-1/2"]
[Annotator "RC"]
[ECO "B12"]
[WhiteElo "2111"]
[BlackElo "1934"]
[PlyCount "88"]
[EventDate "2025.01.03"]
[EventType "swiss"]
[EventCountry "USA"]
[SourceTitle "playchess.com"]
[Source "ChessBase"]
[SourceQuality "1"]
[TimeControl "5400+30"]

1. e4 {[%emt 0:11:43]} c6 {[%emt 0:00:01]} 2. d4 {[%emt 0:00:07]} d5 {[%emt 0:00:10]} 3. f3 {[%emt 0:00:06]} e6 {[%emt 0:00:24]} 4. Nc3 {[%emt 0:09:55]} Bb4 {[%emt 0:00:05]} 5. Qd3 {[%emt 1:11:09]} Ne7 {[%emt 0:02:01]} 6. Be3 {[%emt 0:00:00]} b6 {[%emt 0:02:26]} 7. O-O-O {[%emt 0:00:00]} Ba6 {[%emt 0:00:47]} 8. Qd2 {[%emt 0:00:00]} Bb5 {[%emt 1:28:36]} 9. Be2 Bxe2 {[%emt 0:00:00]} 10. Re1 {[%emt 0:02:30]} Bf1 11. Rxf1 {[%emt 0:00:00]} Nd7 {[%emt 0:00:00]} 12. e5 {[%emt 0:00:00]} c5 {[%emt 0:00:00]} 13. Nge2 {[%emt 0:00:00]} Rc8 {[%emt 0:00:00]} 14. g4 {[%emt 0:00:00]} Nc6 {[%emt 0:00:00]} 15. f4 {[%emt 0:00:00]} cxd4 {[%emt 0:00:00]} 16. Bxd4 {[%emt 0:00:00]} Qc7 {[%emt 0:00:00]} 17. Rf3 {[%emt 0:00:00]} Nc5 {[%emt 0:00:00]} 18. Qe3 {[%emt 0:00:00]} Bxc3 {[%emt 0:00:00]} 19. Nxc3 {[%emt 0:00:00]} Nxd4 {[%emt 0:00:00]} 20. Qxd4 {[%emt 0:00:00]} O-O {[%emt 0:00:00]} 21. Kb1 {[%emt 0:00:00]} Ne4 {[%emt 0:00:00]} 22. Re1 {[%emt 0:00:00]} Qc5 {[%emt 0:00:00]} 23. Qd1 {[%emt 0:00:00]} Nxc3+ {[%emt 0:00:00]} 24. Rxc3 {[%emt 0:00:00]} Qb4 {[%emt 0:00:00]} 25. Rf3 {[%emt 0:00:00]} Rc4 {[%emt 0:00:00]} 26. c3 {[%emt 0:00:00]} Qc5 {[%emt 0:00:00]} 27. Qd3 {[%emt 0:00:00]} Rc8 {[%emt 0:00:00]} 28. Rh3 {[%emt 0:00:00]} g6 {[%emt 0:00:00]} 29. Qg3 {[%emt 0:00:00]} Re4 {[%emt 0:00:00]} 30. Rxe4 {[%emt 0:00:00]} dxe4 {[%emt 0:00:00]} 31. Qe1 {[%emt 0:00:00]} Rd8 {[%emt 0:00:00]} 32. Kc2 {[%emt 0:02:44]} Qc4 {[%emt 0:00:00]} 33. b3 {[%emt 0:00:28]} Qa6 {[%emt 0:00:00]} 34. a4 {[%emt 0:01:10]} Rd3 {[%emt 0:00:00]} 35. Re3 {[%emt 0:00:08]} Rxe3 {[%emt 0:01:13]} 36. Qxe3 {[%emt 0:00:01]} Qf1 {[%emt 0:00:01]} 37. Qxe4 {[%emt 0:00:13]} Qf2+ {[%emt 0:00:32]} 38. Kd3 {[%emt 0:00:19]} Qf1+ {[%emt 0:01:33]} 39. Kd2 {[%emt 0:01:44]} Qf2+ {[%emt 0:00:12]} 40. Kd3 {[%emt 0:00:00]} Qf1+ {[%emt 0:00:01]} 41. Kd4 {[%emt 0:02:15]} Qd1+ {[%emt 0:01:00]} 42. Kc4 {[%emt 0:00:01]} Qf1+ {[%emt 0:00:09]} 43. Kd4 {[%emt 0:01:19]} Qd1+ {[%emt 0:00:02]} 44. Kc4 {[%emt 0:01:40]} Qf1+ {[%emt 0:00:02]} 1/2-1/2

[Event "Marshall CC Premier 04-2025"]
[Site "New York"]
[Date "2025.04.06"]
[Round "4.8"]
[White "Kurup, Siddharth"]
[Black "Smith, Daniel"]
[Result "1/2-1/2"]
[Annotator "RC"]
[ECO "E40"]
[WhiteElo "1965"]
[BlackElo "2006"]
[PlyCount "57"]
[EventDate "2025.01.03"]
[EventType "swiss"]
[EventCountry "USA"]
[SourceTitle "playchess.com"]
[Source "ChessBase"]
[SourceQuality "1"]
[TimeControl "5400+30"]

1. d4 {[%emt 0:00:07]} Nf6 {[%emt 0:00:22]} 2. c4 {[%emt 0:00:10]} Nc6 {[%emt 0:00:11]} 3. Nf3 {[%emt 0:01:22]} e6 {[%emt 0:00:17]} 4. Nc3 {[%emt 0:01:20]} Bb4 {[%emt 0:00:44]} 5. e3 {[%emt 0:00:54]} Qe7 {[%emt 0:01:48]} 6. Be2 {[%emt 0:06:57]} O-O {[%emt 1:30:08]} 7. Qc2 {[%emt 0:01:25]} d6 {[%emt 0:00:00]} 8. a3 {[%emt 0:03:09]} Bxc3+ {[%emt 0:00:00]} 9. Qxc3 {[%emt 0:00:13]} a5 {[%emt 0:00:00]} 10. b3 {[%emt 0:03:43]} Ne4 {[%emt 0:00:00]} 11. Qc2 {[%emt 0:00:39]} f5 {[%emt 0:00:00]} 12. O-O {[%emt 0:02:11]} Bd7 {[%emt 0:00:00]} 13. Bb2 {[%emt 0:00:40]} Rae8 {[%emt 0:00:00]} 14. Nd2 {[%emt 0:12:05]} Nf6 {[%emt 0:00:00]} 15. e4 {[%emt 0:07:14]} fxe4 {[%emt 0:00:00]} 16. Nxe4 {[%emt 0:01:16]} e5 {[%emt 0:00:00]} 17. Nxf6+ {[%emt 0:05:39]} Rxf6 {[%emt 0:00:00]} 18. dxe5 {[%emt 0:00:37]} dxe5 {[%emt 0:00:00]} 19. Rad1 {[%emt 0:18:37]} Ref8 {[%emt 0:00:00]} 20. Qd2 {[%emt 0:02:01]} Nd4 {[%emt 0:00:00]} 21. Qe3 {[%emt 0:07:51]} Nxe2+ {[%emt 0:00:00]} 22. Qxe2 {[%emt 0:00:16]} Rf5 {[%emt 0:00:00]} 23. Qe3 {[%emt 0:09:36]} Bc6 {[%emt 0:00:00]} 24. f3 {[%emt 0:00:52]} Qg5 {[%emt 0:00:00]} 25. Qxg5 {[%emt 0:01:59]} Rxg5 {[%emt 0:00:00]} 26. Rd3 {[%emt 0:01:15]} e4 {[%emt 0:00:00]} 27. fxe4 {[%emt 0:00:37]} Bxe4 {[%emt 0:00:00]} 28. Rxf8+ {[%emt 0:01:05]} Kxf8 {[%emt 0:00:00]} 29. Rd2 {[%emt 0:00:21]} 1/2-1/2

[Event "Marshall CC Premier 04-2025"]
[Site "New York"]
[Date "2025.04.06"]
[Round "4.9"]
[White "Li, Mason J"]
[Black "Shen, Leo Xiaohang"]
[Result "0-1"]
[Annotator "RC"]
[ECO "B12"]
[WhiteElo "1823"]
[BlackElo "1998"]
[PlyCount "126"]
[EventDate "2025.01.03"]
[EventType "swiss"]
[EventCountry "USA"]
[SourceTitle "playchess.com"]
[Source "ChessBase"]
[SourceQuality "1"]
[TimeControl "5400+30"]

1. e4 {[%emt 0:00:30]} c6 {[%emt 0:00:30]} 2. d4 {[%emt 0:00:30]} d5 {[%emt 0:00:30]} 3. e5 {[%emt 0:00:30]} Bf5 {[%emt 0:00:30]} 4. Nd2 {[%emt 0:00:30]} e6 {[%emt 0:00:30]} 5. Nb3 {[%emt 0:00:30]} Nd7 {[%emt 0:00:30]} 6. Nf3 {[%emt 0:00:30]} Bg6 {[%emt 0:00:30]} 7. Be2 {[%emt 0:00:30]} Ne7 {[%emt 0:00:30]} 8. Bd2 {[%emt 0:00:30]} Nf5 {[%emt 0:00:30]} 9. O-O {[%emt 0:00:30]} Be7 {[%emt 0:00:30]} 10. g4 {[%emt 0:00:30]} Nh4 {[%emt 0:00:30]} 11. Nxh4 {[%emt 0:00:30]} Bxh4 {[%emt 0:00:30]} 12. f4 {[%emt 0:00:30]} Be4 {[%emt 0:00:30]} 13. Bf3 {[%emt 0:00:30]} Bxf3 {[%emt 0:00:30]} 14. Qxf3 {[%emt 0:00:30]} Be7 {[%emt 0:00:30]} 15. Kh1 {[%emt 0:00:30]} O-O {[%emt 0:00:30]} 16. f5 {[%emt 0:00:30]} b6 {[%emt 0:00:30]} 17. f6 {[%emt 0:00:30]} gxf6 {[%emt 0:00:30]} 18. Bh6 {[%emt 0:00:30]} fxe5 {[%emt 0:00:30]} 19. dxe5 {[%emt 0:00:30]} Nxe5 {[%emt 0:00:30]} 20. Qc3 {[%emt 0:00:30]} Bf6 {[%emt 0:00:30]} 21. g5 {[%emt 0:00:30]} Bh8 {[%emt 0:00:30]} 22. Bxf8 {[%emt 0:00:30]} Kxf8 {[%emt 0:00:30]} 23. Qb4+ {[%emt 0:00:30]} c5 {[%emt 0:00:30]} 24. Qh4 {[%emt 0:00:30]} Kg8 {[%emt 0:00:30]} 25. Nd2 {[%emt 0:00:30]} Ng6 {[%emt 0:00:30]} 26. Qf2 {[%emt 0:00:30]} Qd7 {[%emt 0:00:30]} 27. c3 {[%emt 0:00:30]} Re8 {[%emt 0:00:30]} 28. Rad1 {[%emt 0:00:30]} Qb7 {[%emt 0:00:30]} 29. Qg2 {[%emt 0:00:30]} b5 {[%emt 0:00:30]} 30. Nb3 {[%emt 0:00:30]} Rc8 {[%emt 0:00:30]} 31. Qf2 {[%emt 0:00:30]} Qe7 {[%emt 0:00:30]} 32. h4 {[%emt 0:00:30]} Ne5 {[%emt 0:00:30]} 33. Rg1 {[%emt 0:00:30]} Qc7 {[%emt 0:00:30]} 34. h5 {[%emt 0:00:30]} a5 {[%emt 0:00:30]} 35. Rdf1 {[%emt 0:00:30]} a4 {[%emt 0:00:30]} 36. Nd2 {[%emt 0:00:30]} Qb7 {[%emt 0:00:30]} 37. Qg2 {[%emt 0:00:30]} Rc7 {[%emt 0:00:30]} 38. Nf3 {[%emt 0:00:30]} d4 {[%emt 0:00:30]} 39. cxd4 {[%emt 0:00:30]} Nxf3 {[%emt 0:00:30]} 40. Rxf3 {[%emt 0:00:30]} cxd4 {[%emt 0:00:30]} 41. g6 {[%emt 0:00:30]} hxg6 {[%emt 0:00:30]} 42. hxg6 {[%emt 0:00:30]} f5 {[%emt 0:00:30]} 43. Re1 {[%emt 0:00:30]} Qd5 {[%emt 0:00:30]} 44. Rf2 {[%emt 0:00:30]} Qxg2+ {[%emt 0:00:30]} 45. Kxg2 {[%emt 0:00:30]} Rc6 {[%emt 0:00:30]} 46. Kg3 {[%emt 0:00:30]} Bf6 {[%emt 0:00:30]} 47. Rfe2 {[%emt 0:00:30]} e5 {[%emt 0:00:30]} 48. Rf1 {[%emt 0:00:30]} Kg7 {[%emt 0:00:30]} 49. Rxf5 {[%emt 0:00:30]} Kxg6 {[%emt 0:00:30]} 50. Rf1 {[%emt 0:00:30]} d3 {[%emt 0:00:30]} 51. Re3 {[%emt 0:00:30]} d2 {[%emt 0:00:30]} 52. Rd1 {[%emt 0:00:30]} Rc2 {[%emt 0:00:30]} 53. Re2 {[%emt 0:00:30]} Bg5 {[%emt 0:00:30]} 54. Rxe5 {[%emt 0:00:30]} Rxb2 {[%emt 0:00:30]} 55. Kf2 {[%emt 0:00:30]} b4 {[%emt 0:00:30]} 56. Rb5 {[%emt 0:00:30]} Bf6 {[%emt 0:00:30]} 57. Ke2 {[%emt 0:00:30]} Bc3 {[%emt 0:00:30]} 58. a3 {[%emt 0:00:30]} bxa3 {[%emt 0:00:30]} 59. Rc5 {[%emt 0:00:30]} Bb4 {[%emt 0:00:30]} 60. Rd5 {[%emt 0:00:30]} a2 {[%emt 0:00:30]} 61. Rg1+ {[%emt 0:00:30]} Kf6 {[%emt 0:00:30]} 62. Ke3 {[%emt 0:00:30]} Rb1 {[%emt 0:00:30]} 63. Rgg5 {[%emt 0:00:30]} a1=Q {[%emt 0:00:30]} 0-1

[Event "Marshall CC Premier 04-2025"]
[Site "New York"]
[Date "2025.04.06"]
[Round "4.10"]
[White "Kozower, Ethan"]
[Black "Marzouq, Chowdhury"]
[Result "0-1"]
[Annotator "RC"]
[ECO "A11"]
[WhiteElo "1995"]
[BlackElo "1983"]
[PlyCount "158"]
[EventDate "2025.01.03"]
[EventType "swiss"]
[EventCountry "USA"]
[SourceTitle "playchess.com"]
[Source "ChessBase"]
[SourceQuality "1"]
[TimeControl "5400+30"]

1. c4 c6 2. Nf3 Nf6 3. Nc3 d5 4. e3 e6 5. b3 Nbd7 6. Bb2 Bd6 7. Be2 e5 8. cxd5 cxd5 9. Nb5 Bb8 10. Ba3 Nb6 11. d4 a6 12. Nc3 e4 13. Nd2 Be6 14. Rc1 Bd6 15. Bxd6 Qxd6 16. f3 exf3 17. Nxf3 O-O 18. O-O Rfe8 19. Ne5 Nbd7 20. Nd3 Re7 21. Nf2 Bf5 22. Bd3 Bxd3 23. Qxd3 Rae8 24. Rce1 Nf8 25. e4 dxe4 26. Ncxe4 Nxe4 27. Rxe4 Ne6 28. Ng4 Rd8 29. Qe3 Rc7 30. Rd1 h6 31. Ne5 Ng5 32. Nc4 Qd7 33. Rf4 Re8 34. Qd2 Qd5 35. h4 Ne6 36. Ne3 Qh5 37. Re4 Rd8 38. Qf2 Qb5 39. Re5 Qc6 40. d5 Qc3 41. Qg3 Rc5 42. b4 Qxb4 43. Nf5 Qf4 44. Qxf4 Nxf4 45. g3 Ng6 46. Ne7+ Nxe7 47. Rxe7 Rdxd5 48. Rf1 Rf5 49. Rxf5 Rxf5 50. Rxb7 Rb5 51. Rd7 Rb1+ 52. Kf2 Rb2+ 53. Kf3 Rxa2 54. g4 a5 55. g5 hxg5 56. hxg5 a4 57. Rd6 a3 58. g6 fxg6 59. Rxg6 {[%emt 0:29:30]} Ra1 {[%emt 0:29:30]} 60. Ra6 {[%emt 0:00:30]} Kh7 {[%emt 0:00:30]} 61. Kg3 {[%emt 0:00:30]} g6 {[%emt 0:00:30]} 62. Kf3 {[%emt 0:00:30]} Kh6 {[%emt 0:00:30]} 63. Ra5 {[%emt 0:00:30]} g5 {[%emt 0:00:30]} 64. Kg3 {[%emt 0:00:30]} Kh5 {[%emt 0:00:30]} 65. Kh3 {[%emt 0:00:30]} Kg6 {[%emt 0:00:30]} 66. Kg3 {[%emt 0:00:30]} Kf6 {[%emt 0:00:30]} 67. Kh2 {[%emt 0:00:30]} g4 {[%emt 0:00:30]} 68. Kg2 {[%emt 0:00:30]} Ke6 {[%emt 0:00:30]} 69. Kf2 {[%emt 0:00:30]} Kd6 {[%emt 0:00:30]} 70. Rg5 {[%emt 0:00:30]} Ra2+ {[%emt 0:00:30]} 71. Kg3 {[%emt 0:00:30]} Rb2 {[%emt 0:00:30]} 72. Rxg4 {[%emt 0:00:30]} a2 {[%emt 0:00:30]} 73. Ra4 {[%emt 0:00:30]} Kc5 {[%emt 0:00:30]} 74. Kf3 {[%emt 0:00:30]} Kb5 {[%emt 0:00:30]} 75. Ra8 {[%emt 0:00:30]} Kb4 {[%emt 0:00:30]} 76. Ke3 {[%emt 0:00:30]} Kc3 {[%emt 0:00:30]} 77. Rc8+ {[%emt 0:00:30]} Kb3 {[%emt 0:00:30]} 78. Rb8+ {[%emt 0:00:30]} Kc2 {[%emt 0:00:30]} 79. Ra8 {[%emt 0:00:30]} Kb1 {[%emt 0:00:30]} 0-1